bitfinex/quotes_ETHUSD_20220117
["timestamp","ask_amount","ask_price","bid_price","bid_amount"]
[1642410030247,0.06952197,3275.6,3275.3,1.59206178]
[1642410030445,0.06952197,3275.6,3275.3,0.76323]
[1642410030744,0.06952197,3275.6,3275.4,0.79544946]
[1642410030995,0.06952197,3275.6,3275.4,0.83124447]
[1642410031385,0.06952197,3275.6,3275.4,0.79544946]
[1642410033690,1.45456739,3275.5,3275.4,0.79544946]
[1642410033889,1.75456739,3275.5,3275.4,0.79544946]
[1642410035339,1.75456739,3275.5,3275.0,0.00113685]
[1642410035340,1.7673925,3275.5,3275.0,0.00113685]
[1642410035540,0.44955572,3275.4,3275.0,0.00113685]
[1642410035741,0.44955572,3275.4,3274.5,0.00511581]
[1642410035942,0.44955572,3275.4,3274.1,0.00738951]
[1642410035943,0.76362,3275.2,3274.1,0.00738951]
[1642410036142,1.06362,3275.2,3274.1,0.00738951]
[1642410036540,1.02677255,3274.9,3274.1,0.00738951]
[1642410037143,1.32677255,3274.9,3274.1,0.00738951]
[1642410037547,0.76359,3274.8,3274.2,0.76353]
[1642410037742,1.32677255,3274.9,3274.2,0.76353]
[1642410037743,1.02677255,3274.9,3274.2,0.76353]
[1642410037943,1.02677255,3274.9,3274.3,0.00625266]
[1642410038800,1.32677255,3274.9,3274.3,0.00625266]
[1642410038999,0.76355,3274.8,3274.3,0.00625266]
[1642410040000,3.2,3274.9,3274.3,0.00625266]
[1642410040601,3.2,3274.9,3274.4,1.52689]
[1642410041004,3.2,3274.9,3274.5,0.00511581]
[1642410041804,2.9,3274.9,3274.5,0.00511581]
[1642410042532,2.9,3274.9,3274.5,0.76851581]
[1642410042739,3.2,3274.9,3274.5,0.76851581]
[1642410042936,3.2,3274.9,3274.6,0.00454739]
[1642410043138,2.9,3274.9,3274.6,0.00454739]
[1642410045037,2.9,3274.9,3274.7,17.88]
[1642410045240,2.9,3274.9,3274.8,14.02479242]
[1642410045438,0.19442691,3275.5,3274.9,0.76325]
[1642410045637,0.19442691,3275.5,3275.0,3.0636539]
[1642410045838,0.19442691,3275.5,3275.0,0.0022737]
[1642410046089,0.19442691,3275.5,3274.8,1.56134513]
[1642410046090,0.19442691,3275.5,3275.1,0.00170527]
[1642410046288,0.19442691,3275.5,3275.0,0.0022737]
[1642410046488,0.19442691,3275.5,3274.9,0.00284212]
[1642410046689,0.95781691,3275.5,3274.9,0.00284212]
[1642410049393,0.95781691,3275.5,3274.6,0.00454739]
[1642410050238,0.95781691,3275.5,3274.7,2.61676343]
[1642410050636,0.95781691,3275.5,3274.8,0.00341054]
[1642410050839,0.95781691,3275.5,3274.8,0.76680054]
[1642410051038,0.95781691,3275.5,3274.8,0.80561914]
[1642410051237,0.95781691,3275.5,3274.9,0.00284212]
[1642410051440,0.19442691,3275.5,3274.9,0.00284212]
[1642410052437,0.95781691,3275.5,3274.9,0.00284212]
[1642410052837,0.95781691,3275.5,3274.9,2.61951544]
[1642410053041,0.95781691,3275.5,3274.9,2.91951544]
[1642410053236,0.95781691,3275.5,3275.0,0.0022737]
[1642410053485,1.25781691,3275.5,3275.0,0.0022737]
[1642410057336,1.25781691,3275.5,3274.9,0.00284212]
[1642410057739,1.25781691,3275.5,3274.9,2.61951544]
[1642410058138,1.25781691,3275.5,3275.0,0.0022737]
[1642410060441,2.24642915,3275.5,3275.0,0.0022737]
[1642410060640,1.4709065,3274.8,3274.7,0.00397897]
[1642410061095,1.7709065,3274.8,3274.7,2.62065229]
[1642410061292,0.3,3274.8,3274.7,2.62065229]
[1642410061491,0.99129927,3274.8,3274.7,2.62065229]
[1642410061691,0.3,3274.9,3274.7,2.62065229]
[1642410061891,0.3,3274.9,3274.7,2.654064]
[1642410062091,0.76347,3275.2,3274.8,0.00341054]
[1642410062491,0.3,3275.2,3274.8,0.00341054]
[1642410062893,0.76342,3275.2,3274.8,2.62008386]
[1642410063091,1.06342,3275.2,3274.8,2.62008386]
[1642410063292,1.06342,3275.2,3274.9,0.00284212]
[1642410065839,1.06342,3275.2,3274.9,2.80335727]
[1642410066243,1.06342,3275.2,3275.0,0.0022737]
[1642410066440,0.76342,3275.2,3275.0,0.0022737]
[1642410066641,0.19442691,3275.5,3275.0,2.61894702]
[1642410066843,0.19442691,3275.5,3275.1,3.35889233]
[1642410067140,0.19442691,3275.5,3275.1,3.6605976]
[1642410067339,0.19442691,3275.5,3275.2,0.00113685]
[1642410068341,0.19442691,3275.5,3275.2,2.61781017]
[1642410068594,0.19442691,3275.5,3275.3,2.86122143]
[1642410068795,0.19442691,3275.5,3275.3,2.80742708]
[1642410070091,0.19442691,3275.5,3275.4,2.61667332]
[1642410070294,0.19442691,3275.5,3275.4,5.83671664]
[1642410070692,0.19442691,3275.5,3275.4,13.38671664]
[1642410070892,0.19442691,3275.5,3275.4,5.83671664]
[1642410072338,0.19442691,3275.5,3275.4,5.53671664]
[1642410072540,0.19442691,3275.5,3275.4,2.65417466]
[1642410072739,0.19442691,3275.5,3275.4,2.61667332]
[1642410073540,1.17911365,3275.6,3275.4,2.61667332]
[1642410074540,1.17911365,3275.6,3275.2,0.00113685]
[1642410074745,3.40379674,3275.6,3274.9,2.61667332]
[1642410074941,0.00170527,3275.5,3274.9,2.61667332]
[1642410075141,0.00170527,3275.5,3275.0,0.00113685]
[1642410075341,0.00113685,3275.4,3275.0,0.00113685]
[1642410075743,2.11333999,3275.1,3275.0,0.00113685]
[1642410075995,2.41333999,3275.1,3275.0,0.00113685]
[1642410076396,2.41333999,3275.1,3274.8,0.00227369]
[1642410077197,1.17421899,3275.1,3274.8,0.00227369]
[1642410078199,2.70119899,3275.1,3274.8,0.00227369]
[1642410078400,1.17417574,3275.0,3274.8,2.61894701]
[1642410078700,1.93765574,3275.0,3274.9,0.00170527]
[1642410079503,1.17417574,3275.0,3274.8,0.00227369]
[1642410080941,1.17417574,3275.0,3274.8,2.61894701]
[1642410081343,1.17417574,3275.0,3274.9,0.00170527]
[1642410081545,1.93764574,3275.0,3274.9,0.00170527]
[1642410082043,2.23764574,3275.0,3274.9,0.00170527]
[1642410083042,2.23764574,3275.0,3274.8,0.00227369]
[1642410083694,0.438,3274.9,3274.8,0.00227369]
[1642410083892,1.3642,3274.9,3274.8,0.00227369]
[1642410084091,1.3642,3274.9,3273.9,6.86226768]
[1642410084092,2.3642,3274.9,3273.9,6.86226768]
[1642410084292,2.3642,3274.9,3273.8,2.70449341]
[1642410084293,1.37661691,3274.0,3273.8,1.49759341]
[1642410084601,1.37661691,3274.0,3273.1,4.42193473]
[1642410084602,2.06781691,3274.0,3273.5,3.92499949]
[1642410084791,2.36781691,3274.0,3273.5,3.92499949]
[1642410084991,2.36781691,3274.0,3273.6,0.00682108]
[1642410085291,0.83923035,3273.9,3273.6,0.00682108]
[1642410086692,0.83923035,3273.9,3273.2,0.00909478]
[1642410087342,2.896282,3273.8,3273.2,0.00909478]
[1642410087544,3.196282,3273.8,3273.2,0.00909478]
[1642410087741,0.76397,3273.6,3273.2,0.00909478]
[1642410088244,4.74951877,3273.5,3273.2,0.00909478]
[1642410088443,2.9593814,3273.4,3273.2,0.00909478]
[1642410089043,1.82791,3273.5,3273.2,0.00909478]
[1642410090045,2.82791,3273.5,3273.2,0.00909478]
[1642410090245,0.76395,3273.4,3273.2,0.00909478]
[1642410093792,0.76395,3273.4,3273.2,0.01326211]
[1642410093992,0.76395,3273.4,3273.2,0.00909478]
[1642410094194,0.76395,3273.4,3273.3,0.00852635]
[1642410094394,1.06395,3273.4,3273.2,0.00909478]
[1642410099296,2.9081372,3273.3,3273.2,0.00909478]
[1642410099498,0.6867,3273.3,3273.2,0.00909478]
[1642410099697,3.58280105,3273.3,3273.2,0.00909478]
[1642410100996,0.6867,3273.3,3273.2,0.00909478]
[1642410101399,3.71183406,3273.3,3273.2,0.00909478]
[1642410101997,3.71183406,3273.3,3272.9,1.002]
[1642410102445,3.71183406,3273.3,3273.0,0.00113685]
[1642410104448,3.71183406,3273.3,3272.9,1.002]
[1642410104646,0.00113685,3273.2,3272.9,1.002]
[1642410104846,1.00113685,3273.2,3272.9,1.002]
[1642410105050,1.8956502,3272.4,3272.1,1.2153]
[1642410105246,1.12206097,3272.3,3272.2,0.13819997]
[1642410105446,1.8956502,3272.4,3272.2,0.13819997]
[1642410105447,1.1315502,3272.4,3272.2,0.13819997]
[1642410105647,2.92556855,3273.1,3272.2,0.13819997]
[1642410105648,3.17447306,3273.1,3272.2,0.15084318]
[1642410105846,0.438,3273.4,3272.3,0.00511581]
[1642410106293,2.26881887,3272.5,3272.3,0.00511581]
[1642410106595,0.76406,3272.5,3272.3,0.00511581]
[1642410106793,1.80744151,3272.5,3272.3,0.00511581]
[1642410107794,2.10744151,3272.5,3272.3,0.00511581]
[1642410107992,1.80744151,3272.5,3272.3,0.00511581]
[1642410108595,2.10744151,3272.5,3272.3,0.00286347]
[1642410108796,1.80744151,3272.5,3272.3,0.00286347]
[1642410108994,2.10744151,3272.5,3272.3,0.00286347]
[1642410109597,1.34338151,3272.5,3272.3,0.00286347]
[1642410109846,0.76397,3272.8,3272.3,0.00286347]
[1642410110046,0.04745625,3273.0,3272.3,0.00286347]
[1642410110445,0.04745625,3273.0,3272.3,2.62120474]
[1642410110645,0.04745625,3273.0,3272.3,2.65913848]
[1642410110845,0.04745625,3273.0,3272.4,0.00229505]
[1642410111053,0.87611308,3272.9,3272.4,0.00229505]
[1642410111450,0.04745625,3273.0,3272.4,0.00229505]
[1642410111653,0.04745625,3273.0,3272.5,17.88]
[1642410111847,0.04745625,3273.0,3272.9,0.01271702]
[1642410111848,5.625e-05,3273.0,3272.9,0.01271702]
[1642410112048,0.14236875,3273.2,3272.9,0.01271702]
[1642410112249,0.00111549,3273.0,3272.9,0.01271702]
[1642410112450,0.14236875,3273.2,3272.9,0.01271702]
[1642410112451,0.00168392,3273.1,3272.9,0.01271702]
[1642410112649,0.00111549,3273.0,3272.9,0.01271702]
[1642410113048,0.07564215,3273.0,3272.9,0.01271702]
[1642410113249,0.07564215,3273.0,3272.6,0.3011582]
[1642410113490,0.07564215,3273.0,3272.6,2.91949947]
[1642410113692,0.07564215,3273.0,3272.6,2.65097879]
[1642410113992,0.27006908,3273.0,3272.6,2.95097879]
[1642410114194,1.10764574,3272.7,3272.6,2.95097879]
[1642410114391,1.10764574,3272.7,3272.6,2.91949947]
[1642410114591,1.10764574,3272.7,3272.6,0.3011582]
[1642410114991,1.10764574,3272.7,3272.6,0.0011582]
[1642410115396,1.10764574,3272.7,3272.4,0.00229505]
[1642410115594,1.10764574,3272.7,3272.6,2.61813895]
[1642410115992,1.10764574,3272.7,3272.6,2.65710188]
[1642410116193,1.18160397,3272.7,3272.6,2.65710188]
[1642410116392,1.18160397,3272.7,3272.6,2.95710188]
[1642410116692,1.18160397,3272.7,3272.6,0.0011582]
[1642410117347,1.2555622,3272.7,3272.6,0.0011582]
[1642410117547,1.2555622,3272.7,3272.6,2.61929715]
[1642410117749,1.2555622,3272.7,3272.6,2.65616693]
[1642410118148,1.32952043,3272.7,3272.6,2.65616693]
[1642410118746,1.62952043,3272.7,3272.6,2.65616693]
[1642410119246,1.82394736,3272.7,3272.6,2.65616693]
[1642410120246,2.01837429,3272.7,3272.6,2.65616693]
[1642410121295,2.08789627,3272.7,3272.6,2.65616693]
[1642410122293,2.1618545,3272.7,3272.6,2.65616693]
[1642410122496,2.1618545,3272.7,3272.6,2.61929715]
[1642410122896,1.8618545,3272.7,3272.6,2.61929715]
[1642410123502,2.05628143,3272.7,3272.6,2.61929715]
[1642410123897,2.35628143,3272.7,3272.6,2.61929715]
[1642410124496,2.43023966,3272.7,3272.6,2.61929715]
[1642410124751,2.43023966,3272.7,3272.6,0.0011582]
[1642410125146,2.43023966,3272.7,3272.5,0.00172662]
[1642410125547,2.62466659,3272.7,3272.6,2.61813895]
[1642410125949,2.62466659,3272.7,3272.6,2.61929715]
[1642410126348,2.62466659,3272.7,3272.6,0.0011582]
[1642410126549,2.81909352,3272.7,3272.6,0.0011582]
[1642410127450,4.25709352,3272.7,3272.5,0.00172662]
[1642410127651,1.0,3272.6,3272.5,0.00172662]
[1642410127850,1.0,3272.6,3272.1,0.43287741]
[1642410127851,1.2703637,3272.5,3272.1,0.43287741]
[1642410128051,1.5703637,3272.5,3272.1,0.43287741]
[1642410128253,1.5703637,3272.5,3271.8,3.8824]
[1642410128497,2.29423238,3271.9,3271.8,3.8824]
[1642410128696,1.44836426,3271.9,3271.7,1.49759341]
[1642410129697,1.44836426,3271.9,3271.6,3.8536]
[1642410130096,1.44836426,3271.9,3271.7,0.00284212]
[1642410130296,2.68526938,3271.9,3271.7,0.00284212]
[1642410130496,1.44836426,3271.9,3271.7,0.00284212]
[1642410139297,1.44836426,3271.9,3271.7,0.00657462]
[1642410139753,0.3,3271.9,3271.8,0.0022737]
[1642410141250,0.29185695,3271.9,3271.8,0.0022737]
[1642410141653,0.07395823,3272.0,3271.8,0.0022737]
[1642410142252,0.14348021,3272.0,3271.8,0.0022737]
[1642410143252,0.33790714,3272.0,3271.8,0.0022737]
[1642410143901,1.10207714,3272.0,3271.8,0.0022737]
[1642410144103,0.3,3271.9,3271.8,0.0022737]
[1642410144704,0.53233407,3272.0,3271.8,0.0022737]
[1642410145306,0.6062923,3272.0,3271.8,0.0022737]
[1642410146308,0.80071923,3272.0,3271.8,0.0022737]
[1642410146504,1.86487923,3272.0,3271.8,0.0022737]
[1642410147345,2.05930616,3272.0,3271.8,0.0022737]
[1642410147944,1.29514616,3272.0,3271.8,0.0022737]
[1642410148144,0.99514616,3272.0,3271.8,0.0022737]
[1642410148347,0.99514616,3272.0,3271.8,18.4934152]
[1642410148544,0.99514616,3272.0,3271.9,15.41322364]
[1642410148744,1.06910439,3272.0,3271.9,15.44983034]
[1642410148948,1.06910439,3272.0,3271.9,33.32983034]
[1642410149144,1.06910439,3272.0,3271.9,34.62983034]
[1642410149348,0.00113684,3272.4,3272.0,15.6]
[1642410149548,0.00113684,3272.4,3272.1,4.65320195]
[1642410149749,0.34234339,3272.7,3272.1,4.65320195]
[1642410149750,0.12054893,3272.7,3272.3,19.66278835]
[1642410149947,0.26838516,3273.0,3272.5,17.88]
[1642410150147,0.26838516,3273.0,3272.6,4.23769019]
[1642410150346,0.26838516,3273.0,3272.6,23.26854863]
[1642410150549,0.26838516,3273.0,3272.8,17.88]
[1642410150848,1.52736,3274.4,3273.2,17.88]
[1642410151101,0.07395823,3274.5,3273.3,3.85525218]
[1642410151299,0.07395823,3274.5,3273.4,4.8804]
[1642410151500,0.07395823,3274.5,3273.5,3.22193656]
[1642410151696,1.16244492,3274.5,3273.7,1.26042541]
[1642410151896,1.16244492,3274.5,3273.8,2.89771712]
[1642410152096,1.16244492,3274.5,3273.8,3.19771712]
[1642410152697,1.16244492,3274.5,3273.6,2.83610404]
[1642410152897,1.16244492,3274.5,3273.4,8.7193]
[1642410153312,1.16244492,3274.5,3273.4,11.46899429]
[1642410153698,0.83096971,3273.9,3273.4,8.7193]
[1642410153896,1.59470971,3273.9,3273.4,11.49709933]
[1642410154200,0.00795793,3273.8,3273.4,7.4708]
[1642410154596,1.89470971,3273.9,3273.4,7.4708]
[1642410154597,0.00738951,3273.7,3273.4,7.4708]
[1642410154865,0.00682109,3273.6,3273.4,7.4708]
[1642410155065,0.00682109,3273.6,3273.5,2.73707377]
[1642410155268,0.3,3273.9,3273.5,2.76957565]
[1642410155466,1.06368,3274.2,3273.5,2.76957565]
[1642410155666,0.00795793,3273.8,3273.5,5.38732922]
[1642410156066,0.00738951,3273.7,3273.5,5.38732922]
[1642410156266,0.00738951,3273.7,3273.6,2.84038774]
[1642410156565,1.37241421,3274.0,3273.4,7.4708]
[1642410156769,0.76374,3273.9,3273.4,7.4708]
[1642410156966,0.00682109,3273.6,3273.4,7.4708]
[1642410157365,0.00625266,3273.5,3273.4,7.4708]
[1642410157767,0.85128442,3273.5,3273.4,7.4708]
[1642410157969,1.91510442,3273.5,3273.2,0.27639994]
[1642410158366,0.00568424,3273.4,3273.2,0.27639994]
[1642410158794,1.90885176,3273.5,3273.2,0.27639994]
[1642410158795,0.00511582,3273.3,3273.2,0.27639994]
[1642410161801,0.00511582,3273.3,3273.2,3.25781705]
[1642410162003,0.00511582,3273.3,3273.2,3.55781705]
[1642410162260,0.00511582,3273.3,3273.2,0.6163817]
[1642410162448,0.00511582,3273.3,3273.2,0.57639994]
[1642410162648,0.00511582,3273.3,3273.2,0.27639994]
[1642410162847,0.00511582,3273.3,3273.2,2.89422443]
[1642410163049,0.00511582,3273.3,3273.2,3.19422443]
[1642410163450,0.00511582,3273.3,3273.2,0.57639994]
[1642410163849,0.00511582,3273.3,3273.2,0.27639994]
[1642410165749,0.00511582,3273.3,3272.8,1.16576266]
[1642410166003,1.9161231,3273.2,3272.8,1.135]
[1642410166199,1.9161231,3273.2,3272.6,6.11216171]
[1642410166200,2.22067049,3273.2,3272.6,4.91316171]
[1642410166498,0.00397897,3273.1,3272.6,3.99645999]
[1642410166898,2.2161231,3273.2,3272.6,3.99645999]
[1642410166899,1.09719145,3272.9,3272.6,3.99645999]
[1642410167304,0.0022737,3272.8,3272.7,2.61819936]
[1642410167500,0.3022737,3272.8,3272.7,2.61819936]
[1642410168100,0.3022737,3272.8,3272.7,2.91819936]
[1642410168299,0.3022737,3272.8,3272.7,2.955202]
[1642410168498,0.3022737,3272.8,3272.7,2.91819936]
[1642410169956,0.28100801,3272.8,3272.7,2.95184804]
[1642410170247,0.28100801,3272.8,3272.7,2.91819936]
[1642410170747,0.28100801,3272.8,3272.7,2.61819936]
[1642410171350,0.28100801,3272.8,3272.6,4.29644967]
[1642410171548,0.28100801,3272.8,3272.6,0.3]
[1642410171748,0.00170527,3272.7,3272.6,0.3]
[1642410171949,0.00170527,3272.7,3272.4,3.26867345]
[1642410172348,0.00113685,3272.6,3272.4,0.3]
[1642410172551,0.00113685,3272.6,3272.3,1.52157357]
[1642410172748,0.00170527,3272.7,3272.3,4.26048671]
[1642410173149,0.00113685,3272.6,3272.3,4.26048671]
[1642410173496,0.00170527,3272.7,3272.3,4.26048671]
[1642410173695,0.00170527,3272.7,3272.3,0.33357357]
[1642410173894,0.00113685,3272.6,3272.3,0.3]
[1642410174297,0.00170527,3272.7,3272.3,0.3]
[1642410174495,0.00170527,3272.7,3272.2,0.00113684]
[1642410174696,1.04272431,3272.8,3272.2,0.00113684]
[1642410174697,1.2142388,3272.6,3272.2,0.00113684]
[1642410174897,1.2142388,3272.6,3272.1,0.00170527]
[1642410175105,1.51310195,3272.6,3272.1,0.00170527]
[1642410175598,0.82835944,3272.2,3272.1,0.00170527]
[1642410175798,1.12835944,3272.2,3272.1,0.00170527]
[1642410179247,0.3,3272.2,3272.1,0.00170527]
[1642410179448,0.76402,3272.5,3272.1,0.00170527]
[1642410179847,1.06402,3272.5,3272.1,0.00170527]
[1642410180249,0.9714352,3272.6,3272.1,0.00170527]
[1642410180447,0.9714352,3272.6,3272.1,2.79902122]
[1642410180647,0.00113685,3272.6,3272.1,2.79902122]
[1642410180846,0.00113685,3272.6,3272.2,0.00113684]
[1642410182498,1.06099569,3272.8,3272.1,0.00170527]
[1642410182699,1.06099569,3272.8,3272.1,2.75746222]
[1642410183098,1.06099569,3272.8,3272.2,0.00227369]
[1642410183699,1.52807,3272.6,3272.2,0.00227369]
[1642410183900,1.52807,3272.6,3272.1,0.00284212]
[1642410184101,1.82807,3272.6,3272.1,0.00284212]
[1642410184782,2.26607,3272.6,3271.9,1.02298842]
[1642410184966,2.29278,3272.4,3271.9,1.02298842]
[1642410185170,0.78054258,3272.3,3271.4,8.828]
[1642410185369,0.00727678,3272.2,3271.4,8.828]
[1642410185570,0.9851,3272.2,3271.5,0.00341054]
[1642410185767,1.2851,3272.2,3271.5,0.00341054]
[1642410186768,1.5457195,3271.6,3271.5,0.00341054]
[1642410186967,1.8457195,3271.6,3271.5,0.00341054]
[1642410187569,0.01533215,3271.5,3271.2,0.00511581]
[1642410187773,1.8457195,3271.6,3271.2,0.00511581]
[1642410188172,1.8457195,3271.6,3271.2,2.62449964]
[1642410188608,0.86237457,3271.5,3271.3,0.00454738]
[1642410189010,0.86237457,3271.5,3271.3,2.62393121]
[1642410189411,0.86237457,3271.5,3271.4,0.00397896]
[1642410189811,0.86237457,3271.5,3271.4,2.62336279]
[1642410190212,0.86237457,3271.5,3271.4,2.55257622]
[1642410190514,0.86237457,3271.5,3270.6,3.2836]
[1642410190715,0.76445,3271.4,3270.6,3.2836]
[1642410190917,0.3,3271.2,3270.7,0.00397896]
[1642410191512,1.41759035,3270.9,3270.7,0.00397896]
[1642410191714,2.18199035,3270.9,3270.6,0.00454739]
[1642410195652,1.0644,3270.9,3270.6,0.00454739]
[1642410195855,0.3,3270.9,3270.6,0.00454739]
[1642410196105,0.3,3271.1,3270.5,4.16815027]
[1642410196304,0.00113685,3270.8,3270.5,4.13354739]
[1642410196501,0.0022737,3271.0,3270.5,4.13354739]
[1642410196902,0.00170527,3270.9,3270.5,4.13354739]
[1642410197102,0.76609527,3270.9,3270.5,4.13354739]
[1642410197302,0.30113685,3270.8,3270.5,4.13354739]
[1642410200647,0.30113685,3270.8,3270.5,3.879]
[1642410201648,1.54136425,3270.8,3270.5,3.879]
[1642410205703,0.00987347,3270.7,3270.5,3.879]
[1642410206105,1.54136425,3270.8,3270.5,3.879]
[1642410206805,0.30113685,3270.8,3270.5,3.879]
[1642410207005,0.30113685,3270.8,3270.5,4.179]
[1642410209654,0.30113685,3270.8,3270.5,3.879]
[1642410211301,0.30113685,3270.8,3270.6,2.62020076]
[1642410212805,0.30113685,3270.8,3270.5,3.879]
[1642410213007,0.00845071,3270.7,3270.5,3.879]
[1642410213201,1.53695454,3270.7,3270.5,3.879]
[1642410213402,0.02051644,3270.6,3270.1,5.1968]
[1642410213603,0.76454,3270.6,3270.1,5.1968]
[1642410213802,0.76454,3270.6,3270.2,0.00227369]
[1642410214003,0.3,3270.4,3270.2,0.00227369]
[1642410215149,1.02678456,3270.3,3270.2,0.00227369]
[1642410215350,0.01817864,3270.2,3269.8,0.00454739]
[1642410215550,0.3,3270.1,3269.8,0.00454739]
[1642410215754,0.31937687,3270.1,3269.8,0.00454739]
[1642410216152,0.3,3270.1,3269.7,0.00511581]
[1642410217053,0.76456,3270.2,3270.1,0.6581306]
[1642410217454,0.76456,3270.2,3270.1,0.66097272]
[1642410218255,1.06456,3270.2,3270.1,0.66097272]
[1642410219103,2.24821059,3270.2,3270.1,0.66097272]
[1642410219302,5.30629067,3270.2,3269.6,3.8169]
[1642410219507,0.3,3270.1,3269.6,3.8169]
[1642410219703,0.01256005,3270.0,3269.7,0.00227369]
[1642410219902,2.97880589,3270.0,3269.7,0.00227369]
[1642410220102,2.96624584,3270.0,3269.7,0.00227369]
[1642410221106,0.98080481,3269.8,3269.7,0.00227369]
[1642410221303,0.98080481,3269.8,3269.6,3.21917369]
[1642410221507,0.01442254,3269.7,3269.1,6.51809341]
[1642410221706,0.01442254,3269.7,3269.1,2.72089341]
[1642410221906,1.45116306,3269.7,3269.2,0.00284212]
[1642410223455,0.03600444,3269.6,3269.2,0.00284212]
[1642410223652,0.76476,3269.5,3269.2,0.00284212]
[1642410223852,0.3,3269.4,3269.2,0.00284212]
[1642410224254,0.3,3269.4,3268.9,0.00454739]
[1642410224255,0.6831,3269.4,3268.9,0.00454739]
[1642410224456,4.68548097,3269.4,3268.9,0.00454739]
[1642410224757,4.68548097,3269.4,3268.8,1.49816183]
[1642410225153,0.0022737,3269.3,3268.8,1.49816183]
[1642410225355,2.26146726,3269.0,3268.8,1.49816183]
[1642410225556,2.56146726,3269.0,3268.8,1.49816183]
[1642410225755,2.93891633,3268.9,3268.8,1.49816183]
[1642410226600,2.56146726,3269.0,3268.8,0.00056842]
[1642410226802,2.56146726,3269.0,3268.5,1.49759341]
[1642410227002,2.56146726,3269.0,3268.6,0.00113685]
[1642410228302,0.03577907,3268.8,3268.6,0.00113685]
[1642410229104,0.03577907,3268.8,3268.4,0.00227369]
[1642410229505,0.03577907,3268.8,3268.3,0.00284212]
[1642410230555,0.03577907,3268.8,3268.4,4.11905027]
[1642410230954,0.03577907,3268.8,3268.5,0.00170527]
[1642410231956,0.76492,3268.7,3268.5,0.00170527]
[1642410232155,0.3,3268.6,3268.4,0.00227369]
[1642410232559,0.3,3268.6,3268.5,2.62145686]
[1642410232956,0.3,3268.6,3268.5,2.62316213]
[1642410233355,0.33572757,3268.6,3268.5,2.62316213]
[1642410234304,0.33572757,3268.6,3268.5,0.00170527]
[1642410234504,0.3,3268.6,3268.5,0.00170527]
[1642410234704,0.3,3268.6,3268.3,0.00284212]
[1642410235210,0.00737188,3268.5,3268.3,0.00284212]
[1642410235407,4.8589438,3268.6,3268.3,0.00284212]
[1642410235605,1.10342314,3268.5,3268.3,0.00284212]
[1642410235804,2.93902259,3268.4,3268.3,0.00284212]
[1642410236004,1.10342314,3268.5,3268.3,0.00284212]
[1642410236205,1.74472678,3268.4,3268.3,0.00284212]
[1642410236403,1.44472678,3268.4,3268.3,0.00284212]
[1642410236605,1.74472678,3268.4,3268.3,0.00284212]
[1642410237454,2.62908624,3268.4,3268.3,0.00284212]
[1642410237654,0.3,3268.4,3268.3,0.00284212]
[1642410237859,3.35474878,3268.6,3268.3,0.00284212]
[1642410238255,3.23415862,3268.6,3268.3,0.00284212]
[1642410238854,3.23415862,3268.6,3267.7,0.00625266]
[1642410238855,1.36429284,3268.4,3267.7,0.00625266]
[1642410239154,2.42940284,3268.4,3267.7,0.00625266]
[1642410239353,1.06511,3268.4,3267.7,0.00625266]
[1642410240155,1.06511,3268.4,3267.8,2.62145686]
[1642410240554,1.06511,3268.4,3267.9,0.00511581]
[1642410241401,4.01198026,3268.4,3267.9,0.00511581]
[1642410241703,4.01198026,3268.4,3268.0,2.62145686]
[1642410242103,4.01198026,3268.4,3268.1,0.00397896]
[1642410242304,0.94844631,3268.2,3268.1,0.00397896]
[1642410242704,4.40845281,3268.2,3268.1,0.00397896]
[1642410242911,5.40845281,3268.2,3268.1,0.00397896]
[1642410243104,5.40845281,3268.2,3268.1,2.62543582]
[1642410244511,5.40845281,3268.2,3268.1,0.00397896]
[1642410244772,5.40845281,3268.2,3267.6,2.62145686]
[1642410244971,1.0,3268.1,3267.6,2.62145686]
[1642410245170,3.71812771,3268.0,3267.7,0.0022737]
[1642410245370,0.3,3267.9,3267.7,0.0022737]
[1642410245772,0.3,3267.9,3267.6,0.00284212]
[1642410245970,1.33187627,3267.8,3267.6,0.00284212]
[1642410246171,1.32522392,3267.8,3267.6,0.00284212]
[1642410246572,0.3,3267.9,3267.6,2.62545995]
[1642410246771,0.3,3267.9,3267.6,2.62261783]
[1642410247371,0.3,3267.9,3267.5,2.62602838]
[1642410247772,0.3,3267.9,3267.6,0.00284212]
[1642410247773,1.1753,3267.9,3267.6,0.00284212]
[1642410248177,1.1753,3267.9,3267.7,2.62261783]
[1642410248602,1.1753,3267.9,3267.8,0.00170528]
[1642410248803,2.39582029,3267.9,3267.8,0.00170528]
[1642410249402,2.39582029,3267.9,3267.6,0.00284212]
[1642410250504,1.1753,3267.9,3267.2,0.00511582]
[1642410250906,1.1753,3267.9,3267.7,0.008]
[1642410251305,1.1753,3267.9,3267.8,0.00170528]
[1642410253458,2.55872001,3267.9,3267.8,0.00170528]
[1642410253862,1.1753,3267.9,3267.8,0.00170528]
[1642410255060,2.51894217,3267.9,3267.8,0.00170528]
[1642410256108,2.51894217,3267.9,3267.8,0.00970528]
[1642410256504,2.21894217,3267.9,3267.8,0.00970528]
[1642410256907,5.20038723,3267.9,3267.8,0.00970528]
[1642410257106,2.21894217,3267.9,3267.8,0.00970528]
[1642410257305,5.19352258,3267.9,3267.8,0.00970528]
[1642410257507,2.21894217,3267.9,3267.8,0.00970528]
[1642410257906,2.51894217,3267.9,3267.8,0.00970528]
[1642410258908,1.1753,3267.9,3267.8,0.00970528]
[1642410259308,4.2323339,3267.9,3267.8,2.63232627]
[1642410260459,6.66529997,3267.9,3267.8,0.00970528]
[1642410260661,3.60826607,3267.9,3267.8,0.00970528]
[1642410261069,3.60826607,3267.9,3267.0,1.233]
[1642410261261,0.76534,3267.7,3267.0,1.233]
[1642410261462,1.26678228,3267.2,3267.1,0.00397896]
[1642410261862,1.56678228,3267.2,3267.1,0.00397896]
[1642410262062,1.56678228,3267.2,3267.0,0.00454738]
[1642410262265,1.56678228,3267.2,3266.9,0.00511581]
[1642410262463,0.3,3267.2,3266.9,0.00511581]
[1642410262664,0.2378,3267.5,3266.7,0.00625265]
[1642410263064,0.2378,3267.5,3267.1,2.62288244]
[1642410263511,0.76539,3267.4,3267.2,0.00341054]
[1642410263710,1.87284613,3267.4,3267.1,2.57629298]
[1642410263912,0.3,3267.2,3266.8,2.57629298]
[1642410264310,0.3,3267.2,3266.9,0.00170527]
[1642410265108,0.3,3267.2,3266.7,0.00284211]
[1642410266112,1.0052,3267.2,3266.7,0.00284211]
[1642410266315,1.7915,3267.2,3266.7,0.00284211]
[1642410267256,1.16930701,3266.8,3266.7,0.00284211]
[1642410267656,1.46930701,3266.8,3266.7,0.00284211]
[1642410268059,1.76480701,3266.8,3266.7,0.00284211]
[1642410268460,2.05808204,3266.8,3266.7,0.00284211]
[1642410268759,3.49608204,3266.8,3266.7,0.00284211]